[Event "*** Titled Tuesday Blitz"]
[Site "Chess.com"]
[Date "2021.02.16"]
[Round "11"]
[White "Szparu"]
[Black "Alexsur1981"]
[Result "1-0"]
[WhiteElo "2681"]
[BlackElo "2828"]
[TimeControl "180+1"]
[EndTime "12:06:07 PST"]
[Termination "Szparu won by resignation"]

1. d4 {[%clk 0:03:00.9]} 1... d5 {[%clk 0:02:58]} 2. c4 {[%clk 0:02:57.2]} 2...
e6 {[%clk 0:02:57.6]} 3. Nc3 {[%clk 0:02:54.8]} 3... c6 {[%clk 0:02:57.7]} 4. e4
{[%clk 0:02:51.5]} 4... dxe4 {[%clk 0:02:57.3]} 5. Nxe4 {[%clk 0:02:49.4]} 5...
Bb4+ {[%clk 0:02:57.7]} 6. Bd2 {[%clk 0:02:48]} 6... Qxd4 {[%clk 0:02:58.1]} 7.
Bxb4 {[%clk 0:02:48.6]} 7... Qxe4+ {[%clk 0:02:58.1]} 8. Be2 {[%clk 0:02:48.4]}
8... Na6 {[%clk 0:02:57.7]} 9. Ba5 {[%clk 0:02:48.2]} 9... b6 {[%clk 0:02:56.8]}
10. Qd6 {[%clk 0:02:36.1]} 10... Ne7 {[%clk 0:02:45.9]} 11. Rd1 {[%clk
0:02:24.2]} 11... O-O {[%clk 0:02:44.8]} 12. Qxe7 {[%clk 0:02:22]} 12... h6
{[%clk 0:02:35.5]} 13. Bc3 {[%clk 0:01:59]} 13... Qxg2 {[%clk 0:02:30.1]} 14.
Bf3 {[%clk 0:01:56]} 14... Qg6 {[%clk 0:02:29.8]} 15. Ne2 {[%clk 0:01:52.8]}
15... Qf5 {[%clk 0:02:26.1]} 16. Rg1 {[%clk 0:01:46.9]} 16... g5 {[%clk
0:02:26.2]} 17. Rd8 {[%clk 0:01:29.3]} 17... Bb7 {[%clk 0:02:26.1]} 18. Qxf8+
{[%clk 0:01:26.9]} 1-0

[Event "*** Titled Tuesday Blitz"]
[Site "Chess.com"]
[Date "2021.02.16"]
[Round "11"]
[White "figo13"]
[Black "tusplingher"]
[Result "0-1"]
[WhiteElo "2285"]
[BlackElo "2272"]
[TimeControl "180+1"]
[EndTime "12:06:36 PST"]
[Termination "tusplingher won by resignation"]

1. e4 {[%clk 0:02:59]} 1... c5 {[%clk 0:02:58.9]} 2. Nf3 {[%clk 0:02:57.4]} 2...
g6 {[%clk 0:02:59.2]} 3. d4 {[%clk 0:02:55.6]} 3... cxd4 {[%clk 0:02:59.4]} 4.
Nxd4 {[%clk 0:02:56.4]} 4... Bg7 {[%clk 0:02:59.4]} 5. c4 {[%clk 0:02:56.9]}
5... Nc6 {[%clk 0:02:59.7]} 6. Be3 {[%clk 0:02:55.9]} 6... Nf6 {[%clk
0:02:59.4]} 7. Nc3 {[%clk 0:02:55.7]} 7... O-O {[%clk 0:02:59.4]} 8. Be2 {[%clk
0:02:55.6]} 8... d6 {[%clk 0:02:58.2]} 9. Qd2 {[%clk 0:02:55.8]} 9... Nxd4
{[%clk 0:02:58.3]} 10. Bxd4 {[%clk 0:02:54.8]} 10... Bd7 {[%clk 0:02:58.5]} 11.
O-O {[%clk 0:02:51.7]} 11... Bc6 {[%clk 0:02:58.2]} 12. Rae1 {[%clk 0:02:40.5]}
12... a5 {[%clk 0:02:48.1]} 13. Bd3 {[%clk 0:02:37.1]} 13... Nd7 {[%clk
0:02:46.4]} 14. Bxg7 {[%clk 0:02:36.5]} 14... Kxg7 {[%clk 0:02:46.2]} 15. Kh1
{[%clk 0:02:37]} 15... Nc5 {[%clk 0:02:44.3]} 16. Bb1 {[%clk 0:02:31.7]} 16...
Qc7 {[%clk 0:02:29.5]} 17. f4 {[%clk 0:02:31.1]} 17... e5 {[%clk 0:02:26.9]} 18.
f5 {[%clk 0:02:30.7]} 18... f6 {[%clk 0:02:26.8]} 19. h4 {[%clk 0:02:28]} 19...
Rad8 {[%clk 0:02:18.5]} 20. Rf3 {[%clk 0:02:25.6]} 20... Qf7 {[%clk 0:02:14.1]}
21. Ref1 {[%clk 0:02:23.6]} 21... Qg8 {[%clk 0:02:08.8]} 22. b3 {[%clk
0:02:22.7]} 22... Rd7 {[%clk 0:01:41]} 23. g4 {[%clk 0:02:16.7]} 23... gxf5
{[%clk 0:01:33.1]} 24. gxf5 {[%clk 0:02:10.8]} 24... Kh8 {[%clk 0:01:33]} 25.
Rg1 {[%clk 0:02:10.6]} 25... Rg7 {[%clk 0:01:32.4]} 26. Rfg3 {[%clk 0:02:10.9]}
26... Rxg3 {[%clk 0:01:30.1]} 27. Rxg3 {[%clk 0:02:09.8]} 0-1

[Event "*** Titled Tuesday Blitz"]
[Site "Chess.com"]
[Date "2021.02.16"]
[Round "11"]
[White "stolencandy13"]
[Black "c_r_e_e_p_e_r"]
[Result "1-0"]
[WhiteElo "2488"]
[BlackElo "2385"]
[TimeControl "180+1"]
[EndTime "12:06:58 PST"]
[Termination "stolencandy13 won by checkmate"]

1. e4 {[%clk 0:03:00.9]} 1... c5 {[%clk 0:02:58.7]} 2. Nf3 {[%clk 0:03:00.2]}
2... e6 {[%clk 0:02:59.1]} 3. d4 {[%clk 0:03:00]} 3... cxd4 {[%clk 0:03:00]} 4.
Nxd4 {[%clk 0:03:00.9]} 4... a6 {[%clk 0:03:00.6]} 5. c4 {[%clk 0:03:00.9]} 5...
Qc7 {[%clk 0:03:01]} 6. Nc3 {[%clk 0:03:01.3]} 6... Nf6 {[%clk 0:03:01.6]} 7.
Be2 {[%clk 0:03:01.5]} 7... b6 {[%clk 0:03:02.1]} 8. O-O {[%clk 0:03:02]} 8...
Bb7 {[%clk 0:03:02.7]} 9. Qd3 {[%clk 0:03:01.9]} 9... d6 {[%clk 0:03:03.3]} 10.
b4 {[%clk 0:03:00]} 10... Nbd7 {[%clk 0:03:03.7]} 11. f4 {[%clk 0:02:59.4]}
11... Rd8 {[%clk 0:03:03.1]} 12. a3 {[%clk 0:02:57.8]} 12... Be7 {[%clk
0:03:02.6]} 13. Be3 {[%clk 0:02:57.2]} 13... O-O {[%clk 0:03:02.5]} 14. Rac1
{[%clk 0:02:57.1]} 14... Rfe8 {[%clk 0:02:55.1]} 15. Bf3 {[%clk 0:02:53]} 15...
Ne5 {[%clk 0:02:52.8]} 16. fxe5 {[%clk 0:02:48.7]} 16... dxe5 {[%clk 0:02:53.7]}
17. Nxe6 {[%clk 0:02:48]} 17... fxe6 {[%clk 0:02:46.8]} 18. Qe2 {[%clk
0:02:45.5]} 18... Nd7 {[%clk 0:02:23]} 19. Bg4 {[%clk 0:02:41.6]} 19... Bf6
{[%clk 0:02:23.4]} 20. Rfd1 {[%clk 0:02:30]} 20... Nf8 {[%clk 0:02:22.5]} 21. c5
{[%clk 0:02:25.8]} 21... bxc5 {[%clk 0:02:21.5]} 22. Bxc5 {[%clk 0:02:23.3]}
22... Ng6 {[%clk 0:02:16.4]} 23. Qc4 {[%clk 0:02:21.6]} 23... Kh8 {[%clk
0:01:53.9]} 24. Rxd8 {[%clk 0:02:17.8]} 24... Rxd8 {[%clk 0:01:42.7]} 25. Rd1
{[%clk 0:02:17]} 25... Rxd1+ {[%clk 0:01:35.2]} 26. Bxd1 {[%clk 0:02:13.7]}
26... Nf4 {[%clk 0:01:22.8]} 27. g3 {[%clk 0:02:09.3]} 27... Nh3+ {[%clk
0:01:22.6]} 28. Kg2 {[%clk 0:02:08.9]} 28... Ng5 {[%clk 0:01:23.1]} 29. h4
{[%clk 0:02:05.4]} 29... Nf7 {[%clk 0:01:22.5]} 30. Qxe6 {[%clk 0:02:03.9]}
30... Bc8 {[%clk 0:01:17.9]} 31. Qe8# {[%clk 0:02:02.2]} 1-0

[Event "*** Titled Tuesday Blitz"]
[Site "Chess.com"]
[Date "2021.02.16"]
[Round "11"]
[White "ClydeHillKid"]
[Black "IMAghasiyevKamal"]
[Result "1/2-1/2"]
[WhiteElo "2399"]
[BlackElo "2534"]
[TimeControl "180+1"]
[EndTime "12:07:00 PST"]
[Termination "Game drawn by agreement"]

1. e4 {[%clk 0:02:59.8]} 1... e5 {[%clk 0:02:45.8]} 2. Nf3 {[%clk 0:02:55.7]}
2... Nc6 {[%clk 0:02:44.1]} 3. Bc4 {[%clk 0:02:55.3]} 3... Bc5 {[%clk
0:02:43.2]} 4. c3 {[%clk 0:02:54.7]} 4... Nf6 {[%clk 0:02:42]} 5. d3 {[%clk
0:02:53.7]} 5... d6 {[%clk 0:02:38.6]} 6. Bb3 {[%clk 0:02:51.2]} 6... a5 {[%clk
0:02:38.2]} 7. Nbd2 {[%clk 0:02:49]} 7... O-O {[%clk 0:02:37.8]} 8. Nf1 {[%clk
0:02:45]} 8... Be6 {[%clk 0:02:37]} 9. Ng3 {[%clk 0:02:39.2]} 9... Qd7 {[%clk
0:02:28.8]} 10. Bg5 {[%clk 0:02:36]} 10... Ne8 {[%clk 0:02:23.4]} 11. O-O {[%clk
0:02:32.8]} 11... Bb6 {[%clk 0:02:18.4]} 12. d4 {[%clk 0:02:30.6]} 12... exd4
{[%clk 0:02:17]} 13. cxd4 {[%clk 0:02:31.5]} 13... d5 {[%clk 0:02:17.3]} 14. e5
{[%clk 0:02:19.7]} 14... f6 {[%clk 0:02:11.4]} 15. exf6 {[%clk 0:02:02.2]} 15...
Nxf6 {[%clk 0:02:09.3]} 16. Re1 {[%clk 0:02:01.3]} 16... Rae8 {[%clk 0:02:06.8]}
17. h3 {[%clk 0:01:54]} 17... h6 {[%clk 0:02:05]} 18. Bh4 {[%clk 0:01:48.7]}
18... g5 {[%clk 0:01:44.1]} 1/2-1/2

[Event "*** Titled Tuesday Blitz"]
[Site "Chess.com"]
[Date "2021.02.16"]
[Round "11"]
[White "paulrusan"]
[Black "FMOlexandrProhorov"]
[Result "1-0"]
[WhiteElo "2262"]
[BlackElo "2117"]
[TimeControl "180+1"]
[EndTime "12:07:24 PST"]
[Termination "paulrusan won by resignation"]

1. e4 {[%clk 0:03:00.6]} 1... c5 {[%clk 0:02:59.8]} 2. b4 {[%clk 0:03:01.1]}
2... cxb4 {[%clk 0:02:59.3]} 3. Bb2 {[%clk 0:03:01.7]} 3... d5 {[%clk
0:02:59.5]} 4. exd5 {[%clk 0:03:01.9]} 4... Qxd5 {[%clk 0:02:59.8]} 5. d4 {[%clk
0:03:02.4]} 5... Nc6 {[%clk 0:02:59.4]} 6. c4 {[%clk 0:03:02.7]} 6... bxc3
{[%clk 0:02:57.2]} 7. Nxc3 {[%clk 0:03:03.2]} 7... Qa5 {[%clk 0:02:55.7]} 8. d5
{[%clk 0:03:03.7]} 8... Ne5 {[%clk 0:02:50.9]} 9. Qd4 {[%clk 0:03:04.1]} 9...
Nd7 {[%clk 0:02:47.7]} 10. Nf3 {[%clk 0:03:04.5]} 10... Ngf6 {[%clk 0:02:47.4]}
11. Bc4 {[%clk 0:03:04.9]} 11... g6 {[%clk 0:02:46.1]} 12. O-O {[%clk
0:03:05.3]} 12... Bg7 {[%clk 0:02:46.5]} 13. d6 {[%clk 0:03:05.6]} 13... e6
{[%clk 0:02:45.1]} 14. Nd5 {[%clk 0:03:01]} 14... exd5 {[%clk 0:02:27.8]} 15.
Qe3+ {[%clk 0:02:55.6]} 15... Kf8 {[%clk 0:02:24.8]} 16. Qe7+ {[%clk 0:02:48.8]}
16... Kg8 {[%clk 0:02:24.9]} 17. Ng5 {[%clk 0:02:38]} 17... Ne5 {[%clk
0:01:54.8]} 18. Bxe5 {[%clk 0:02:32.9]} 18... Be6 {[%clk 0:01:53.8]} 19. Nxe6
{[%clk 0:01:57.2]} 19... Re8 {[%clk 0:01:51.3]} 20. Bxf6 {[%clk 0:01:50.5]}
20... Rxe7 {[%clk 0:01:15.8]} 21. dxe7 {[%clk 0:01:46.8]} 21... Qa4 {[%clk
0:01:12.7]} 22. Nxg7 {[%clk 0:01:35]} 1-0

[Event "*** Titled Tuesday Blitz"]
[Site "Chess.com"]
[Date "2021.02.16"]
[Round "11"]
[White "Skillcam"]
[Black "Hangar-18"]
[Result "1-0"]
[WhiteElo "2488"]
[BlackElo "2384"]
[TimeControl "180+1"]
[EndTime "12:07:35 PST"]
[Termination "Skillcam won by resignation"]

1. d4 {[%clk 0:03:00.9]} 1... Nf6 {[%clk 0:02:59.5]} 2. c4 {[%clk 0:03:01.3]}
2... e6 {[%clk 0:02:58.9]} 3. Nf3 {[%clk 0:03:01.5]} 3... Bb4+ {[%clk
0:02:55.5]} 4. Nbd2 {[%clk 0:03:01.7]} 4... O-O {[%clk 0:02:53.5]} 5. a3 {[%clk
0:03:02]} 5... Be7 {[%clk 0:02:53.3]} 6. b4 {[%clk 0:03:01.8]} 6... d5 {[%clk
0:02:50.4]} 7. e3 {[%clk 0:03:02.1]} 7... a5 {[%clk 0:02:49.6]} 8. b5 {[%clk
0:03:01.9]} 8... c6 {[%clk 0:02:49.2]} 9. a4 {[%clk 0:03:02]} 9... Bb4 {[%clk
0:02:43.3]} 10. Bd3 {[%clk 0:02:53]} 10... Ne4 {[%clk 0:02:41.9]} 11. Qc2 {[%clk
0:02:51.2]} 11... f5 {[%clk 0:02:38.2]} 12. O-O {[%clk 0:02:49.4]} 12... Qf6
{[%clk 0:02:31.2]} 13. Ba3 {[%clk 0:02:42.1]} 13... Bxa3 {[%clk 0:02:20.1]} 14.
Rxa3 {[%clk 0:02:43]} 14... Nd7 {[%clk 0:02:14.1]} 15. Rb1 {[%clk 0:02:33.4]}
15... Nxd2 {[%clk 0:01:36]} 16. Qxd2 {[%clk 0:02:34.3]} 16... e5 {[%clk
0:01:32.4]} 17. dxe5 {[%clk 0:02:24]} 17... Nxe5 {[%clk 0:01:33.3]} 18. Nxe5
{[%clk 0:02:24.8]} 18... Qxe5 {[%clk 0:01:33.2]} 19. cxd5 {[%clk 0:02:25.7]}
19... Qxd5 {[%clk 0:01:25.4]} 20. Rc3 {[%clk 0:02:25.5]} 20... Kh8 {[%clk
0:01:22.2]} 21. Qc2 {[%clk 0:02:22.6]} 21... cxb5 {[%clk 0:01:15.7]} 22. Bxb5
{[%clk 0:02:23.5]} 22... Be6 {[%clk 0:01:07.1]} 23. Bc4 {[%clk 0:02:18.7]} 23...
Qe5 {[%clk 0:01:06.3]} 24. Bxe6 {[%clk 0:02:12.7]} 24... Qxe6 {[%clk 0:01:07.2]}
25. Rxb7 {[%clk 0:02:12.1]} 25... Rad8 {[%clk 0:01:07.2]} 26. Rcc7 {[%clk
0:02:05.5]} 26... Qg6 {[%clk 0:01:04.8]} 27. h3 {[%clk 0:02:00.8]} 27... Rd6
{[%clk 0:00:55.9]} 28. Rxg7 {[%clk 0:01:53.7]} 28... Qxg7 {[%clk 0:00:54.3]} 29.
Rxg7 {[%clk 0:01:54.6]} 29... Kxg7 {[%clk 0:00:55.2]} 30. Qc7+ {[%clk
0:01:54.7]} 1-0

[Event "*** Titled Tuesday Blitz"]
[Site "Chess.com"]
[Date "2021.02.16"]
[Round "11"]
[White "BairaKovanova"]
[Black "ajdemipopushi"]
[Result "0-1"]
[WhiteElo "2437"]
[BlackElo "2376"]
[TimeControl "180+1"]
[EndTime "12:07:37 PST"]
[Termination "ajdemipopushi won by resignation"]

1. e4 {[%clk 0:03:00.9]} 1... c5 {[%clk 0:02:59.6]} 2. Nf3 {[%clk 0:02:59.6]}
2... g6 {[%clk 0:02:59.9]} 3. g3 {[%clk 0:02:58.5]} 3... d5 {[%clk 0:02:59.4]}
4. e5 {[%clk 0:02:55.7]} 4... Nc6 {[%clk 0:02:56.9]} 5. Bg2 {[%clk 0:02:45.4]}
5... Bg4 {[%clk 0:02:55.6]} 6. h3 {[%clk 0:02:43.8]} 6... Bxf3 {[%clk
0:02:55.5]} 7. Qxf3 {[%clk 0:02:43.7]} 7... e6 {[%clk 0:02:55.5]} 8. Qe2 {[%clk
0:02:41.1]} 8... Bg7 {[%clk 0:02:41.7]} 9. f4 {[%clk 0:02:39.8]} 9... Nge7
{[%clk 0:02:40.1]} 10. O-O {[%clk 0:02:38.7]} 10... h5 {[%clk 0:02:38.5]} 11. d3
{[%clk 0:02:29.9]} 11... Nf5 {[%clk 0:02:37.7]} 12. Qf2 {[%clk 0:02:27.4]} 12...
h4 {[%clk 0:02:32.8]} 13. g4 {[%clk 0:02:27.3]} 13... Ng3 {[%clk 0:02:30.1]} 14.
Re1 {[%clk 0:02:27.8]} 14... Rc8 {[%clk 0:01:51]} 15. Nc3 {[%clk 0:02:26.8]}
15... g5 {[%clk 0:01:34]} 16. Nb5 {[%clk 0:02:24.2]} 16... O-O {[%clk
0:01:24.2]} 17. Bd2 {[%clk 0:02:07.4]} 17... a6 {[%clk 0:01:17.8]} 18. Nd6
{[%clk 0:02:07.5]} 18... Rc7 {[%clk 0:01:17.8]} 19. c3 {[%clk 0:01:57.6]} 19...
f6 {[%clk 0:01:10.8]} 20. d4 {[%clk 0:01:54.1]} 20... fxe5 {[%clk 0:01:04.1]}
21. dxe5 {[%clk 0:01:48.2]} 21... Nxe5 {[%clk 0:00:55.6]} 22. Qe3 {[%clk
0:01:47.1]} 22... gxf4 {[%clk 0:00:49.1]} 0-1

[Event "*** Titled Tuesday Blitz"]
[Site "Chess.com"]
[Date "2021.02.16"]
[Round "11"]
[White "anon481216"]
[Black "DamianoLew95"]
[Result "0-1"]
[WhiteElo "2469"]
[BlackElo "2615"]
[TimeControl "180+1"]
[EndTime "12:08:13 PST"]
[Termination "DamianoLew95 won by resignation"]

1. d4 {[%clk 0:03:00.9]} 1... d5 {[%clk 0:02:59.6]} 2. c4 {[%clk 0:03:01.8]}
2... c6 {[%clk 0:02:59.9]} 3. Nf3 {[%clk 0:03:02.1]} 3... Nf6 {[%clk 0:03:00]}
4. Nc3 {[%clk 0:03:02.6]} 4... e6 {[%clk 0:02:56.4]} 5. Bg5 {[%clk 0:03:03.1]}
5... Nbd7 {[%clk 0:02:56.2]} 6. cxd5 {[%clk 0:03:01.9]} 6... exd5 {[%clk
0:02:55.6]} 7. e3 {[%clk 0:03:02]} 7... Bb4 {[%clk 0:02:51.8]} 8. Bd3 {[%clk
0:03:00.1]} 8... Qa5 {[%clk 0:02:51.1]} 9. O-O {[%clk 0:02:46.6]} 9... Bxc3
{[%clk 0:02:47.2]} 10. bxc3 {[%clk 0:02:46.7]} 10... Qxc3 {[%clk 0:02:46.4]} 11.
e4 {[%clk 0:02:36.3]} 11... dxe4 {[%clk 0:02:43.3]} 12. Re1 {[%clk 0:02:35.6]}
12... O-O {[%clk 0:02:35.1]} 13. Bxe4 {[%clk 0:02:35.2]} 13... Nxe4 {[%clk
0:02:32.4]} 14. Rxe4 {[%clk 0:02:35.1]} 14... f6 {[%clk 0:02:12]} 15. Bf4 {[%clk
0:02:33.4]} 15... Nb6 {[%clk 0:02:06.5]} 16. Rc1 {[%clk 0:02:24.2]} 16... Qa3
{[%clk 0:02:00.3]} 17. Re3 {[%clk 0:01:51.1]} 17... Qxa2 {[%clk 0:01:51.3]} 18.
Bd6 {[%clk 0:01:50.5]} 18... Rd8 {[%clk 0:01:42.2]} 19. Ra3 {[%clk 0:01:47.4]}
19... Qf7 {[%clk 0:01:33.3]} 20. Bc5 {[%clk 0:01:42]} 20... Bg4 {[%clk
0:01:14.6]} 21. Rxa7 {[%clk 0:01:38.3]} 21... Rxa7 {[%clk 0:01:14.5]} 22. Bxb6
{[%clk 0:01:38.1]} 22... Raa8 {[%clk 0:01:15]} 23. Bxd8 {[%clk 0:01:37.4]} 23...
Rxd8 {[%clk 0:01:14.1]} 24. Rb1 {[%clk 0:01:28.9]} 24... Bxf3 {[%clk 0:01:09.6]}
25. Qxf3 {[%clk 0:01:28.2]} 25... Rxd4 {[%clk 0:01:06.9]} 26. Qa3 {[%clk
0:01:20]} 26... Rd8 {[%clk 0:01:02.3]} 27. Qa5 {[%clk 0:01:12.3]} 27... Qd5
{[%clk 0:00:59.2]} 28. Qb6 {[%clk 0:01:07.1]} 28... Qd1+ {[%clk 0:00:57]} 0-1

[Event "*** Titled Tuesday Blitz"]
[Site "Chess.com"]
[Date "2021.02.16"]
[Round "11"]
[White "Lady_Nika"]
[Black "HanSchut"]
[Result "1/2-1/2"]
[WhiteElo "2359"]
[BlackElo "2229"]
[TimeControl "180+1"]
[EndTime "12:08:44 PST"]
[Termination "Game drawn by repetition"]

1. d4 {[%clk 0:03:00.9]} 1... Nf6 {[%clk 0:02:58.3]} 2. e3 {[%clk 0:03:00.8]}
2... g6 {[%clk 0:02:58.2]} 3. f4 {[%clk 0:03:00.2]} 3... Bg7 {[%clk 0:02:58.3]}
4. Nf3 {[%clk 0:03:00.5]} 4... O-O {[%clk 0:02:58.1]} 5. c3 {[%clk 0:03:00.8]}
5... b6 {[%clk 0:02:58.5]} 6. Bd3 {[%clk 0:03:00.8]} 6... Bb7 {[%clk 0:02:59]}
7. O-O {[%clk 0:03:01]} 7... d6 {[%clk 0:02:59.5]} 8. Nbd2 {[%clk 0:03:01.4]}
8... Nbd7 {[%clk 0:02:59.4]} 9. e4 {[%clk 0:03:00.3]} 9... e5 {[%clk 0:02:59.6]}
10. fxe5 {[%clk 0:03:00.4]} 10... dxe5 {[%clk 0:03:00]} 11. d5 {[%clk
0:03:00.9]} 11... Nc5 {[%clk 0:02:52.3]} 12. Qe2 {[%clk 0:03:00.7]} 12... a5
{[%clk 0:02:45.5]} 13. c4 {[%clk 0:02:59.1]} 13... Nfd7 {[%clk 0:02:41.1]} 14.
Nb3 {[%clk 0:02:59.1]} 14... f5 {[%clk 0:02:34.3]} 15. Ng5 {[%clk 0:02:53.7]}
15... fxe4 {[%clk 0:02:11.7]} 16. Bxe4 {[%clk 0:02:48.7]} 16... Rxf1+ {[%clk
0:02:00.7]} 17. Qxf1 {[%clk 0:02:45.6]} 17... Qe7 {[%clk 0:01:51.6]} 18. Qe2
{[%clk 0:02:36.7]} 18... a4 {[%clk 0:01:44.1]} 19. Nxc5 {[%clk 0:02:35.8]} 19...
Nxc5 {[%clk 0:01:44.5]} 20. Bd2 {[%clk 0:02:30.2]} 20... Rf8 {[%clk 0:01:37.7]}
21. Rf1 {[%clk 0:02:26.7]} 21... Rxf1+ {[%clk 0:01:29.5]} 22. Qxf1 {[%clk
0:02:26.3]} 22... Bh6 {[%clk 0:01:29.9]} 23. h4 {[%clk 0:02:25.9]} 23... Ba6
{[%clk 0:01:18.6]} 24. Qe2 {[%clk 0:02:19.7]} 24... Nxe4 {[%clk 0:01:13.2]} 25.
Qxe4 {[%clk 0:02:19]} 25... Bxg5 {[%clk 0:00:53.6]} 26. Bxg5 {[%clk 0:02:17.8]}
26... Qc5+ {[%clk 0:00:53.5]} 27. Kh2 {[%clk 0:02:16.4]} 27... Bxc4 {[%clk
0:00:51.3]} 28. Qxe5 {[%clk 0:02:16.2]} 28... Qd6 {[%clk 0:00:51.8]} 29. Bf4
{[%clk 0:02:11.4]} 29... Qxe5 {[%clk 0:00:49.3]} 30. Bxe5 {[%clk 0:02:11.5]}
30... Bxd5 {[%clk 0:00:46.4]} 31. Bxc7 {[%clk 0:02:11.4]} 31... Bxa2 {[%clk
0:00:45.9]} 32. Bxb6 {[%clk 0:02:11.5]} 32... Bb3 {[%clk 0:00:44.2]} 33. Kg3
{[%clk 0:02:11]} 33... Kf7 {[%clk 0:00:44.1]} 34. Kf4 {[%clk 0:02:11.2]} 34...
h5 {[%clk 0:00:43.3]} 35. Kg5 {[%clk 0:02:10.8]} 35... Bc2 {[%clk 0:00:43.7]}
36. Bd4 {[%clk 0:02:09.5]} 36... Bb3 {[%clk 0:00:44]} 37. g4 {[%clk 0:02:08.5]}
37... hxg4 {[%clk 0:00:43.5]} 38. Kxg4 {[%clk 0:02:08.9]} 38... Bc2 {[%clk
0:00:43.7]} 39. Kf4 {[%clk 0:02:09]} 39... Bb3 {[%clk 0:00:43.9]} 40. Ke5 {[%clk
0:02:09.3]} 40... Bc2 {[%clk 0:00:44.3]} 41. Be3 {[%clk 0:02:09.2]} 41... Bb3
{[%clk 0:00:44.2]} 42. Kd4 {[%clk 0:02:08.2]} 42... Bd1 {[%clk 0:00:44]} 43. Kc3
{[%clk 0:02:08.7]} 43... Bb3 {[%clk 0:00:43.9]} 44. Kd2 {[%clk 0:02:06.6]} 44...
Ke6 {[%clk 0:00:42.4]} 45. Kc3 {[%clk 0:02:06]} 45... Kf5 {[%clk 0:00:39.6]} 46.
Bg5 {[%clk 0:02:05.3]} 46... Ke6 {[%clk 0:00:37.4]} 47. Kb4 {[%clk 0:02:05.5]}
47... Kf5 {[%clk 0:00:37.5]} 48. Kc5 {[%clk 0:02:05.2]} 48... Ke6 {[%clk
0:00:37.5]} 49. Kd4 {[%clk 0:02:04.7]} 49... Kf5 {[%clk 0:00:37.1]} 50. Ke3
{[%clk 0:02:04.8]} 50... Ke6 {[%clk 0:00:37.2]} 51. Ke4 {[%clk 0:02:04.8]} 51...
Bc2+ {[%clk 0:00:37.5]} 52. Kd4 {[%clk 0:02:03.6]} 52... Bd1 {[%clk 0:00:37.8]}
53. Kc3 {[%clk 0:02:02.3]} 53... Bb3 {[%clk 0:00:37.9]} 54. Kb4 {[%clk
0:02:01.9]} 54... Kf5 {[%clk 0:00:37.9]} 55. Kc3 {[%clk 0:02:01.7]} 55... Ke6
{[%clk 0:00:38.3]} 1/2-1/2

[Event "*** Titled Tuesday Blitz"]
[Site "Chess.com"]
[Date "2021.02.16"]
[Round "11"]
[White "elohunter1999"]
[Black "Ave_Mariia"]
[Result "1-0"]
[WhiteElo "2630"]
[BlackElo "2494"]
[TimeControl "180+1"]
[EndTime "12:08:47 PST"]
[Termination "elohunter1999 won by resignation"]

1. d4 {[%clk 0:03:00.9]} 1... Nf6 {[%clk 0:02:59.8]} 2. c4 {[%clk 0:03:01]} 2...
e6 {[%clk 0:03:00.3]} 3. Nc3 {[%clk 0:03:00.1]} 3... Bb4 {[%clk 0:03:00.2]} 4.
Qc2 {[%clk 0:03:00.3]} 4... O-O {[%clk 0:02:59.1]} 5. a3 {[%clk 0:02:55.9]} 5...
Bxc3+ {[%clk 0:02:59.1]} 6. Qxc3 {[%clk 0:02:56.8]} 6... d6 {[%clk 0:02:52.5]}
7. Bg5 {[%clk 0:02:55.2]} 7... h6 {[%clk 0:02:44.6]} 8. Bh4 {[%clk 0:02:48.6]}
8... Nbd7 {[%clk 0:02:44.9]} 9. e3 {[%clk 0:02:48.1]} 9... e5 {[%clk 0:02:42.8]}
10. Bd3 {[%clk 0:02:36.9]} 10... e4 {[%clk 0:02:38.1]} 11. Bc2 {[%clk
0:02:33.5]} 11... c6 {[%clk 0:02:24]} 12. Ne2 {[%clk 0:02:31.7]} 12... d5 {[%clk
0:02:19.7]} 13. O-O {[%clk 0:02:24.8]} 13... g5 {[%clk 0:02:18.8]} 14. Bg3
{[%clk 0:02:23.4]} 14... Nb6 {[%clk 0:02:18.2]} 15. b3 {[%clk 0:02:19]} 15...
Bg4 {[%clk 0:02:13.6]} 16. f3 {[%clk 0:02:03.9]} 16... exf3 {[%clk 0:02:13.4]}
17. gxf3 {[%clk 0:02:04.8]} 17... Bh3 {[%clk 0:02:13.3]} 18. Rf2 {[%clk
0:01:54.9]} 18... Nh5 {[%clk 0:02:12.7]} 19. c5 {[%clk 0:01:45.6]} 19... Nd7
{[%clk 0:02:12.3]} 20. Bd6 {[%clk 0:01:39.9]} 20... Re8 {[%clk 0:02:10.9]} 21.
e4 {[%clk 0:01:39.4]} 21... Nf8 {[%clk 0:01:45.7]} 22. e5 {[%clk 0:01:24.9]}
22... Ne6 {[%clk 0:01:28.6]} 23. f4 {[%clk 0:01:24.4]} 23... Bg4 {[%clk
0:01:20.2]} 24. f5 {[%clk 0:01:24.3]} 24... Nef4 {[%clk 0:01:16.7]} 25. Nxf4
{[%clk 0:01:16.3]} 25... Nxf4 {[%clk 0:01:17.6]} 26. f6 {[%clk 0:01:13.3]} 26...
Qd7 {[%clk 0:01:14.4]} 27. Rxf4 {[%clk 0:01:11.5]} 27... gxf4 {[%clk 0:01:14.7]}
28. Qd3 {[%clk 0:01:11.9]} 28... Bf5 {[%clk 0:01:07.3]} 29. Qxf5 {[%clk
0:01:11.6]} 29... Qxf5 {[%clk 0:01:07.7]} 30. Bxf5 {[%clk 0:01:12.5]} 30... Kh8
{[%clk 0:01:06]} 31. Kf2 {[%clk 0:01:10.7]} 31... Rg8 {[%clk 0:01:06]} 32. Rg1
{[%clk 0:01:10]} 32... Rxg1 {[%clk 0:01:04.1]} 33. Kxg1 {[%clk 0:01:10.9]} 33...
Rg8+ {[%clk 0:01:04]} 34. Kf2 {[%clk 0:01:11.1]} 34... Rg5 {[%clk 0:01:04.3]}
35. e6 {[%clk 0:01:04.1]} 35... fxe6 {[%clk 0:01:02]} 36. f7 {[%clk 0:01:03.8]}
36... Rxf5 {[%clk 0:01:02.1]} 37. f8=Q+ {[%clk 0:01:04]} 37... Rxf8 {[%clk
0:01:02.5]} 38. Bxf8 {[%clk 0:01:04.9]} 38... Kh7 {[%clk 0:00:56.6]} 39. Kf3
{[%clk 0:01:02.1]} 39... Kg6 {[%clk 0:00:56.9]} 40. Kxf4 {[%clk 0:01:01.6]} 1-0